bitfinex-derivatives/quotes_ETHF0:USTF0_20210110
["timestamp","ask_amount","ask_price","bid_price","bid_amount"]
[1610283266529,4.00959,1290.1,1290.0,1.8491]
[1610283267830,34.00959,1290.1,1290.0,1.8491]
[1610283269435,34.00959,1290.1,1289.6,2.1066]
[1610283269634,34.00959,1290.1,1289.5,2.78112815]
[1610283269938,34.00959,1290.1,1289.4,2.78007253]
[1610283270539,4.00959,1289.5,1289.4,2.78007253]
[1610283270738,34.00959,1289.5,1289.3,2.77931801]
[1610283270939,34.00959,1289.5,1289.2,2.77925629]
[1610283271335,34.00959,1289.5,1289.1,2.779869]
[1610283272035,34.00959,1289.5,1289.0,4.49998782]
[1610283272635,4.00959,1289.1,1289.0,4.49998782]
[1610283272835,34.00959,1289.1,1289.0,4.49998782]
[1610283273836,4.00959,1289.1,1289.0,4.49998782]
[1610283274036,4.00959,1289.1,1289.0,1.7203]
[1610283274436,4.00959,1289.1,1288.7,5.2651634]
[1610283274641,4.00959,1288.8,1288.7,5.2651634]
[1610283275739,33.405,1290.1,1288.2,3.7113334]
[1610283275938,33.405,1290.1,1288.7,1.636]
[1610283276342,33.405,1290.1,1290.0,1.85437593]
[1610283276543,34.00959,1290.1,1290.0,4.31827593]
[1610283277143,34.00959,1290.1,1290.0,2.4639]
[1610283278146,34.00959,1290.1,1290.0,4.31950833]
[1610283278544,34.00959,1290.1,1290.0,2.4639]
[1610283279348,34.00959,1290.1,1290.0,3.85712789]
[1610283280149,34.00959,1290.1,1289.9,1.39372935]
[1610283280348,34.00959,1290.1,1290.0,1.16180037]
[1610283281651,34.00959,1290.1,1289.9,1.16173425]
[1610283282052,34.00959,1290.1,1290.0,0.69765712]
[1610283282252,36.32609,1290.1,1290.0,0.69765712]
[1610283282453,36.32609,1290.1,1289.9,0.46561802]
[1610283282654,36.32609,1290.1,1289.7,0.46621607]
[1610283283052,36.32609,1290.1,1289.6,0.46653131]
[1610283283754,36.32609,1290.1,1289.5,0.46671228]
[1610283284358,189.51079,1290.1,1289.5,0.46671228]
[1610283284556,189.51079,1290.1,1289.4,0.46714023]
[1610283284557,4.00959,1289.6,1289.4,0.46714023]
[1610283284757,30.0,1289.5,1289.3,0.46730884]
[1610283284957,32.1506,1289.5,1289.3,0.46730884]
[1610283285564,32.1506,1289.5,1289.1,0.46794491]
[1610283285761,32.1506,1289.5,1288.9,0.46838798]
[1610283286162,32.1506,1289.5,1288.8,0.46860565]
[1610283286562,33.7085,1289.5,1288.9,0.46858799]
[1610283286762,50.6484,1289.2,1288.9,0.46858799]
[1610283286963,50.6484,1289.2,1288.7,0.70290847]
[1610283286964,30.0,1289.1,1288.7,0.46880142]
[1610283287162,31.9274,1289.1,1288.7,0.46880142]
[1610283287462,31.9274,1289.1,1288.8,0.46831644]
[1610283287865,31.9274,1289.1,1288.9,0.46791179]
[1610283288064,31.9274,1289.1,1289.0,0.46731601]
[1610283288565,35.93699,1289.1,1289.0,0.46731601]
[1610283288764,34.00959,1289.1,1289.0,0.46731601]
[1610283288965,34.00959,1289.1,1289.0,0.69968837]
[1610283289168,34.00959,1289.1,1289.0,2.73298837]
[1610283289567,34.00959,1289.1,1289.0,2.96447695]
[1610283289766,34.00959,1289.1,1289.0,3.19600798]
[1610283290365,34.00959,1289.1,1289.0,3.42687405]
[1610283290665,34.00959,1289.1,1289.0,2.0333]
[1610283291469,34.00959,1289.1,1289.0,3.88978726]
[1610283292468,34.00959,1289.1,1289.0,2.0333]
[1610283292669,34.00959,1289.1,1289.0,3.88952952]
[1610283293068,34.00959,1289.1,1289.0,2.0333]
[1610283294068,4.00959,1289.1,1289.0,2.0333]
[1610283294267,4.00959,1289.1,1289.0,2.32133235]
[1610283294669,4.00959,1289.1,1289.0,3.87293235]
[1610283295369,34.00959,1289.1,1289.0,3.87293235]
[1610283296269,4.00959,1289.1,1289.0,3.87293235]
[1610283296470,4.00959,1289.1,1289.0,1.5516]
[1610283296874,4.00959,1289.1,1289.0,3.87108601]
[1610283297071,4.00959,1289.1,1289.0,1.5516]
[1610283297472,30.0,1289.7,1289.0,4.33401236]
[1610283297872,30.0,1289.7,1289.0,1.5516]
[1610283298073,30.0,1289.7,1289.6,1.8533824]
[1610283298274,30.0,1289.7,1289.6,3.9040824]
[1610283298674,34.00959,1289.7,1289.6,3.9040824]
[1610283300978,34.00959,1289.7,1289.6,2.0507]
[1610283301779,34.00959,1289.7,1289.6,3.900365]
[1610283303279,34.00959,1289.7,1289.3,2.31232836]
[1610283303280,34.00959,1289.7,1289.5,1.85066773]
[1610283303481,34.00959,1289.7,1289.6,1.8944]
[1610283306383,34.00959,1289.7,1289.6,3.28835357]
[1610283306783,34.00959,1289.7,1289.6,1.8944]
[1610283306984,34.00959,1289.7,1289.6,3.05834041]
[1610283307783,34.00959,1289.7,1289.3,3.71542849]
[1610283307784,34.00959,1289.7,1289.5,0.932707]
[1610283308184,34.00959,1289.7,1289.5,0.70011734]
[1610283308783,34.00959,1289.7,1289.6,0.46711734]
[1610283309485,34.00959,1289.7,1289.6,0.70046439]
[1610283309785,34.00959,1289.7,1289.5,0.93395252]
[1610283310488,34.00959,1289.7,1289.6,0.93340318]
[1610283310886,34.00959,1289.7,1289.6,1.16585163]
[1610283311388,34.00959,1289.7,1289.4,1.39855438]
[1610283311988,34.00959,1289.7,1289.5,1.39757907]
[1610283312388,34.00959,1289.7,1289.6,1.39693872]
[1610283312587,34.00959,1289.7,1289.6,3.25873872]
[1610283312988,34.00959,1289.7,1289.6,1.8618]
[1610283314592,34.00959,1289.7,1289.6,3.02712845]
[1610283315395,34.00959,1289.7,1289.6,2.79309199]
[1610283315593,34.00959,1289.7,1289.6,2.56085199]
[1610283315892,34.00959,1289.7,1289.6,2.32783436]
[1610283316091,34.00959,1289.7,1289.6,0.46603436]
[1610283316692,41.79749,1289.7,1289.6,0.46603436]
[1610283317194,41.79749,1289.7,1289.5,0.69875202]
[1610283317493,41.79749,1289.7,1289.6,0.4663164]
[1610283319296,41.79749,1289.7,1289.6,0.70005608]
[1610283319696,41.79749,1289.7,1289.6,0.93343186]
[1610283320399,41.79749,1289.7,1289.6,1.16601561]
[1610283320899,41.79749,1289.7,1289.6,3.09661561]
[1610283321500,41.79749,1289.7,1289.6,1.9306]
[1610283321701,41.79749,1289.7,1289.6,3.09650727]
[1610283321900,34.00959,1289.7,1289.6,3.09650727]
[1610283322100,34.00959,1289.7,1289.6,2.63035551]
[1610283323001,34.00959,1289.7,1289.6,0.69975551]
[1610283323401,34.00959,1289.7,1289.6,0.46651443]
[1610283323804,34.00959,1289.7,1289.5,0.69977164]
[1610283324004,34.00959,1289.7,1289.6,0.46697282]
[1610283324706,34.00959,1289.7,1289.6,0.23383477]
[1610283324906,34.00959,1289.7,1289.5,0.23393113]
[1610283325104,35.87219,1289.7,1289.5,0.23393113]
[1610283325305,35.87219,1289.7,1289.4,0.23420456]
[1610283325706,35.87219,1289.7,1289.3,0.23440384]
[1610283326706,35.87219,1289.7,1289.1,0.46893919]
[1610283326707,4.00959,1289.4,1289.2,0.23436493]
[1610283326905,30.0,1289.3,1289.2,0.23436493]
[1610283327107,30.0,1289.3,1289.1,0.23453924]
[1610283327307,32.1875,1289.3,1289.1,0.23453924]
[1610283328512,32.1875,1289.3,1289.0,0.23470622]
[1610283328711,4.00959,1289.1,1289.0,0.23470622]
[1610283328910,34.00959,1289.1,1288.9,0.46961745]
[1610283329210,34.00959,1289.1,1289.0,0.46929982]
[1610283331212,34.00959,1289.1,1288.9,0.46865735]
[1610283332315,34.00959,1289.1,1289.0,0.23435858]
[1610283333222,34.00959,1289.1,1288.9,0.23444028]
[1610283333524,34.00959,1289.1,1288.8,0.23457024]
[1610283333921,34.00959,1289.1,1288.7,0.46914049]
[1610283334122,34.00959,1289.1,1288.8,0.23454273]
[1610283334822,4.00959,1288.9,1288.8,0.23454273]
[1610283335023,35.61259,1288.9,1288.8,0.46959151]
[1610283336129,35.61259,1288.9,1288.8,0.23492293]
[1610283336927,35.61259,1288.9,1288.6,0.23510695]
[1610283337127,35.61259,1288.9,1288.7,0.23511449]
[1610283337827,35.61259,1288.9,1288.7,0.46962724]
[1610283338633,35.61259,1288.9,1288.7,0.23476007]
[1610283339231,35.61259,1288.9,1288.4,0.70428021]
[1610283339232,35.61259,1288.9,1288.4,0.23500413]
[1610283339431,35.61259,1288.9,1287.9,0.23551638]
[1610283339830,35.61259,1288.9,1287.8,0.23566218]
[1610283340030,35.61259,1288.9,1287.7,0.47132437]
[1610283340231,44.88823185,1288.9,1287.7,0.23591906]
[1610283340531,9.27574112,1288.8,1287.6,0.23592096]
[1610283340731,64.3907,1287.7,1287.6,0.23592096]
[1610283340931,98.40029,1287.7,1287.6,0.23592096]
[1610283341234,100.55759,1287.7,1287.5,0.23609042]
[1610283341431,100.55759,1287.7,1287.3,0.47218083]
[1610283341432,100.55759,1287.7,1287.4,0.23616573]
[1610283341831,100.55759,1287.7,1287.2,0.23635207]
[1610283342235,100.55759,1287.7,1287.1,0.23651688]
[1610283342633,100.55759,1287.7,1287.0,0.23658556]
[1610283342833,4.00959,1287.1,1287.0,0.23658556]
[1610283343033,36.20999,1287.1,1287.0,0.23658556]
[1610283345736,36.20999,1287.1,1286.9,0.23753714]
[1610283346837,36.20999,1287.1,1287.0,0.23770907]
[1610283347036,36.20999,1287.1,1287.0,0.47510065]
[1610283347537,36.20999,1287.1,1287.0,0.23763823]
[1610283347737,36.20999,1287.1,1286.9,0.23759004]
[1610283348239,36.20999,1287.1,1286.8,0.47518009]
[1610283348240,36.20999,1287.1,1286.8,0.23780771]
[1610283348441,36.20999,1287.1,1286.6,0.23789876]
[1610283348842,4.00959,1286.7,1286.6,0.23789876]
[1610283349043,36.23919,1286.7,1286.6,0.23789876]
[1610283349341,36.23919,1286.7,1286.5,0.47579751]
[1610283349543,36.23919,1286.7,1286.4,0.71369627]
[1610283349544,36.23919,1286.7,1286.6,0.23768404]
[1610283349943,36.23919,1286.7,1286.5,0.23773399]
[1610283350445,36.23919,1286.7,1286.6,0.2377217]
[1610283350746,36.23919,1286.7,1286.5,0.23781849]
[1610283351145,36.23919,1286.7,1286.4,0.47536809]
[1610283351146,36.23919,1286.7,1286.4,0.23784205]
[1610283351549,36.23919,1286.7,1286.6,0.23761536]
[1610283351747,36.23919,1286.7,1286.6,0.47491901]
[1610283352450,36.23919,1286.7,1286.6,0.71170854]
[1610283353150,36.23919,1286.7,1286.5,0.94894473]
[1610283353351,36.23919,1286.7,1286.6,0.94847487]
[1610283354254,34.00959,1286.7,1286.5,1.18559359]
[1610283354451,34.00959,1286.7,1286.6,1.18569024]
[1610283355450,34.00959,1286.7,1286.4,1.42341224]
[1610283355751,34.00959,1286.7,1286.5,1.42286635]
[1610283356151,4.00959,1286.7,1286.5,1.42286635]
[1610283356351,4.00959,1286.7,1286.5,3.26066635]
[1610283356552,34.00959,1286.7,1286.6,1.42141693]
[1610283357151,34.00959,1286.7,1286.5,1.8378]
[1610283357850,34.00959,1286.7,1286.5,3.73052961]
[1610283359854,4.00959,1286.7,1286.5,3.73052961]
[1610283360254,34.00959,1286.7,1286.5,3.73052961]
[1610283360454,34.00959,1286.7,1286.6,1.89317231]
[1610283361055,34.00959,1286.7,1286.5,1.8378]
[1610283361457,34.00959,1286.7,1286.5,2.36433222]
[1610283361857,34.00959,1286.7,1286.4,2.36385712]
[1610283362159,34.00959,1286.7,1286.6,1.89055084]
[1610283362357,34.00959,1286.7,1286.6,4.11865084]
[1610283362757,34.00959,1286.7,1286.6,2.2281]
[1610283363657,34.00959,1286.7,1286.4,1.88848732]
[1610283363858,34.00959,1286.7,1286.6,1.41734825]
[1610283364059,34.00959,1286.7,1286.6,1.1821767]
[1610283364460,34.00959,1286.7,1286.6,0.94580888]
[1610283365060,34.00959,1286.7,1286.6,0.70945122]
[1610283365862,34.00959,1286.7,1286.6,0.47316484]
[1610283366061,34.00959,1286.7,1286.5,0.47336702]
[1610283366261,36.44239,1286.7,1286.5,0.47336702]
[1610283366662,36.44239,1286.7,1286.6,0.47408512]
[1610283367762,36.44239,1286.7,1286.6,0.71013322]
[1610283369365,36.44239,1286.7,1286.6,0.94586397]
[1610283369565,36.44239,1286.7,1286.6,1.18194918]
[1610283370270,36.44239,1286.7,1286.4,1.41882879]
[1610283370669,36.44239,1286.7,1286.5,1.41859628]
[1610283371671,6.44239,1286.7,1286.6,1.41999141]
[1610283371871,4.00959,1286.7,1286.6,1.41999141]
[1610283372071,4.00959,1286.7,1286.4,1.89332427]
[1610283372271,4.00959,1286.7,1286.5,1.89435285]
[1610283372474,4.00959,1286.7,1286.5,3.78495285]
[1610283372673,4.00959,1286.7,1286.6,1.89473093]
[1610283372974,4.00959,1286.7,1286.5,1.8906]
[1610283373374,4.00959,1286.7,1286.5,4.25793016]
[1610283373574,4.00959,1286.7,1286.6,2.36707885]
[1610283377077,34.00959,1286.7,1286.6,2.36707885]
[1610283377980,34.00959,1286.7,1286.5,4.25565119]
[1610283378379,34.00959,1286.7,1286.5,1.8906]
[1610283378579,34.00959,1286.7,1286.4,2.36529258]
[1610283378979,30.0,1286.7,1286.5,2.36402466]
[1610283379380,30.0,1286.7,1286.5,2.0781]
[1610283379580,30.0,1286.6,1286.5,4.44072066]
[1610283379981,30.0,1286.6,1286.5,3.97034178]
[1610283380382,30.0,1286.6,1286.5,1.4207725]
[1610283380982,34.00959,1286.6,1286.4,1.42152441]
[1610283381581,4.00959,1286.6,1286.5,1.42121163]
[1610283381983,34.00959,1286.6,1286.4,1.89378553]
[1610283382384,34.00959,1286.6,1286.5,1.89322193]
[1610283383082,34.00959,1286.6,1286.2,4.48437349]
[1610283383083,34.00959,1286.6,1286.4,1.89647037]
[1610283383586,34.00959,1286.6,1286.5,1.423227]
[1610283384084,34.00959,1286.6,1286.4,1.42322698]
[1610283384385,36.14989,1286.6,1286.4,1.42322698]
[1610283384685,36.14989,1286.6,1286.3,1.42368111]
[1610283385084,32.1403,1286.6,1286.5,1.18641017]
[1610283385485,32.1403,1286.6,1286.4,1.18652651]
[1610283385886,32.1403,1286.6,1286.5,0.94947683]
[1610283386086,32.1403,1286.6,1286.4,0.94974445]
[1610283386387,32.1403,1286.6,1286.5,0.71283408]
[1610283387187,36.14989,1286.6,1286.5,0.47574988]
[1610283387788,36.14989,1286.6,1286.4,0.47588539]
[1610283388388,36.14989,1286.6,1286.5,0.47584908]
[1610283388588,36.14989,1286.6,1286.5,1.18772341]
[1610283388989,36.14989,1286.6,1286.4,1.42410655]
[1610283389390,36.14989,1286.6,1286.5,1.42375428]
[1610283389589,36.14989,1286.6,1286.5,1.89667468]
[1610283389790,6.14989,1286.6,1286.5,1.89667468]
[1610283389990,34.00959,1286.6,1286.4,2.36909729]
[1610283390590,34.00959,1286.6,1286.3,1.5883]
[1610283390591,34.00959,1286.6,1286.5,2.36722348]
[1610283391092,4.00959,1286.6,1286.5,2.36722348]
[1610283391291,4.00959,1286.6,1286.4,2.83815901]
[1610283391693,4.00959,1286.6,1286.5,2.83577249]
[1610283391991,4.00959,1286.6,1286.3,1.5883]
[1610283394694,4.00959,1286.6,1286.5,3.29846858]
[1610283394894,58.9208,1286.8,1286.5,3.29846858]
[1610283395095,58.9208,1286.8,1286.5,4.00959]
[1610283395293,3.405,1286.9,1286.5,4.00959]
[1610283395494,3.405,1286.9,1286.7,5.66257396]
[1610283395691,3.405,1286.9,1286.8,3.29191627]
[1610283395893,10.185,1287.5,1286.8,3.29191627]
[1610283396093,50.401,1288.2,1286.7,2.3687]
[1610283396294,30.0,1288.1,1286.7,2.3687]
[1610283396494,30.0,1288.1,1287.9,1.88009645]
[1610283396697,30.0,1288.1,1287.9,2.2976]
[1610283397195,4.00959,1288.0,1287.9,3.70850841]
[1610283397396,34.00959,1288.0,1287.9,3.70850841]
[1610283398400,4.00959,1288.0,1287.9,4.17678479]
[1610283398601,4.00959,1288.0,1287.9,2.2976]
[1610283399101,4.00959,1288.0,1287.9,4.64293025]
[1610283399300,20.401,1288.2,1287.9,4.64293025]
[1610283399301,20.401,1288.2,1287.9,6.30719]
[1610283399703,13.59,1288.2,1288.1,2.34118379]
[1610283400403,13.59,1288.2,1287.9,5.10702054]
[1610283400905,43.59,1288.2,1287.9,5.10702054]
[1610283401107,43.59,1288.2,1288.1,2.34311987]
[1610283401708,43.59,1288.2,1288.0,2.34370763]
[1610283401907,13.59,1288.2,1288.1,2.34331911]
[1610283402309,13.59,1288.2,1287.9,5.10747521]
[1610283402710,13.59,1288.2,1288.0,2.80846755]
[1610283402910,13.59,1288.2,1288.0,12.80846755]
[1610283403112,13.59,1288.2,1288.1,10.0]
[1610283403313,13.59,1288.2,1288.1,14.00959]
[1610283403512,13.59,1288.2,1288.1,10.0]
[1610283404313,13.59,1288.2,1288.1,12.34188328]
[1610283404913,43.59,1288.2,1288.1,12.34188328]
[1610283405113,43.59,1288.2,1288.1,10.0]
[1610283405313,47.59959,1288.2,1288.1,10.0]
[1610283406116,47.59959,1288.2,1288.1,11.8772389]
[1610283406815,44.19459,1288.2,1288.1,11.8772389]
[1610283407415,44.19459,1288.2,1288.1,10.0]
[1610283407715,44.19459,1288.2,1288.1,11.88040901]
[1610283408418,44.19459,1288.2,1288.1,10.0]
[1610283409316,44.19459,1288.2,1288.1,11.41212206]
[1610283409716,44.19459,1288.2,1288.1,10.0]
[1610283410318,14.19459,1288.2,1288.1,10.0]
[1610283410920,44.19459,1288.2,1288.1,10.0]
[1610283411620,44.19459,1288.2,1288.1,12.34483751]
[1610283412021,14.19459,1288.2,1288.1,12.34483751]
[1610283412725,14.19459,1288.2,1288.1,10.0]
[1610283414725,44.19459,1288.2,1288.1,12.34523866]
[1610283415526,44.19459,1288.2,1288.1,11.88067806]
[1610283415725,44.19459,1288.2,1288.1,10.0]
[1610283416726,44.19459,1288.2,1288.1,11.41177938]
[1610283417027,44.19459,1288.2,1288.1,10.0]
[1610283418733,44.19459,1288.2,1288.1,11.41162782]
[1610283419331,44.19459,1288.2,1288.1,10.0]
[1610283420132,44.19459,1288.2,1288.1,11.88246759]
[1610283420331,34.00959,1288.2,1288.1,10.0]
[1610283420732,34.00959,1288.2,1288.1,12.35256229]
[1610283421632,34.00959,1288.2,1288.1,10.0]
[1610283423033,34.00959,1288.2,1288.1,11.88557874]
[1610283423434,34.00959,1288.2,1288.1,10.0]
[1610283423835,34.00959,1288.2,1288.1,11.41664211]
[1610283424234,34.00959,1288.2,1288.1,10.0]
[1610283424838,34.00959,1288.2,1288.1,11.18154711]
[1610283425237,34.00959,1288.2,1288.1,10.0]
[1610283425638,34.00959,1288.2,1288.1,10.94589316]
[1610283426940,34.00959,1288.2,1288.1,10.0]
[1610283431445,34.00959,1288.2,1288.1,11.41589994]
[1610283431649,34.00959,1288.2,1288.1,10.0]
[1610283433550,34.00959,1288.2,1288.1,11.8866776]
[1610283433952,34.00959,1288.2,1288.1,10.0]
[1610283435053,34.00959,1288.2,1288.1,11.41657989]
[1610283435452,34.00959,1288.2,1288.1,10.0]
[1610283435651,34.00959,1288.2,1288.1,11.18192163]
[1610283436655,34.00959,1288.2,1288.1,10.94536169]
[1610283438754,34.00959,1288.2,1288.1,10.0]
[1610283440556,34.00959,1288.2,1288.1,11.18061428]
[1610283441359,34.00959,1288.2,1288.1,10.0]
[1610283441559,34.00959,1288.2,1288.1,11.41494188]
[1610283443961,34.00959,1288.2,1288.1,10.0]
[1610283449071,34.00959,1288.2,1288.1,11.40969734]
[1610283449371,34.00959,1288.2,1288.1,10.0]
[1610283450174,34.00959,1288.2,1288.1,11.41043299]
[1610283450375,34.00959,1288.2,1288.1,10.0]
[1610283451675,34.00959,1288.2,1288.1,11.17711639]
[1610283453776,34.00959,1288.2,1288.1,10.0]
[1610283454977,34.00959,1288.2,1288.1,10.47208136]
[1610283455677,34.00959,1288.2,1288.1,10.0]
[1610283456077,34.00959,1288.2,1288.1,10.23619263]
[1610283456979,34.00959,1288.2,1288.1,10.0]
[1610283457384,34.00959,1288.2,1288.1,10.23616737]
[1610283457780,40.65899,1288.2,1288.1,10.23616737]
[1610283458180,40.65899,1288.2,1288.1,10.0]
[1610283459780,40.65899,1288.2,1288.1,1.1568]
[1610283460780,40.65899,1288.2,1287.7,0.23716414]
[1610283461179,40.65899,1288.2,1288.1,10.0]
[1610283461580,40.65899,1288.2,1287.9,10.0]
[1610283461779,40.65899,1288.2,1287.6,0.2373017]
[1610283461980,40.65899,1288.2,1288.1,10.0]
[1610283462180,40.65899,1288.2,1288.0,10.0]
[1610283462381,40.65899,1288.2,1287.8,0.23704385]
[1610283462680,40.65899,1288.2,1287.9,0.23674471]
[1610283462879,34.00959,1288.2,1287.9,0.23674471]
[1610283463080,34.00959,1288.2,1288.1,10.0]
[1610283463479,34.00959,1288.2,1287.9,0.23674471]
[1610283463680,34.00959,1288.2,1287.8,0.23670745]
[1610283463881,34.00959,1288.2,1288.0,10.0]
[1610283464080,34.00959,1288.2,1287.8,10.23670745]
[1610283464481,34.00959,1288.2,1287.9,10.0]
[1610283464882,34.00959,1288.2,1287.7,10.236748]
[1610283465282,34.00959,1288.2,1288.0,10.0]
[1610283465681,34.00959,1288.2,1288.1,10.0]
[1610283466683,34.00959,1288.2,1288.0,0.23650026]
[1610283467084,34.00959,1288.2,1287.8,10.47300052]
[1610283467085,34.00959,1288.2,1288.1,10.0]
[1610283467485,34.00959,1288.2,1288.0,10.0]
[1610283467887,34.00959,1288.2,1288.1,10.0]
[1610283468289,34.00959,1288.2,1287.9,10.0]
[1610283468690,34.00959,1288.2,1288.1,10.0]
[1610283469090,34.00959,1288.2,1288.0,10.0]
[1610283469489,34.00959,1288.2,1288.1,10.0]
[1610283469889,34.00959,1288.2,1287.5,10.0]
[1610283470290,34.00959,1288.2,1287.3,10.23719728]
[1610283470689,34.00959,1288.2,1287.6,10.0]
[1610283470888,68.00459,1288.2,1287.4,10.0]
[1610283471291,68.00459,1288.2,1287.4,10.23711633]
[1610283471491,4.00959,1287.5,1287.4,10.23711633]
[1610283471689,36.07879,1287.5,1287.4,0.23711633]
[1610283472090,36.07879,1287.5,1287.4,0.4740497]
[1610283472293,36.07879,1287.5,1287.4,0.71051403]
[1610283472691,36.07879,1287.5,1287.4,0.94717151]
[1610283473694,36.07879,1287.5,1287.4,0.71075303]
[1610283474093,36.07879,1287.5,1287.4,10.71075303]
[1610283474496,36.07879,1287.5,1287.4,10.47422658]
[1610283475897,36.07879,1287.5,1287.4,10.2373834]
[1610283476299,36.07879,1287.5,1287.4,10.0]
[1610283477700,36.07879,1287.5,1287.4,10.2376619]
[1610283478001,36.07879,1287.5,1287.4,10.47526669]
[1610283478600,36.07879,1287.5,1287.4,10.0]
[1610283479201,36.07879,1287.5,1287.4,10.71269374]
[1610283479400,36.07879,1287.5,1287.4,10.9508086]
[1610283479800,36.07879,1287.5,1287.4,11.18853422]
[1610283479999,36.07879,1287.5,1287.4,3.18853422]
[1610283480202,36.07879,1287.5,1287.4,2.0]
[1610283480600,36.07879,1287.5,1287.4,3.42578027]
[1610283481000,36.07879,1287.5,1287.4,2.0]
[1610283481200,6.07879,1287.5,1287.4,2.0]
[1610283481600,4.00959,1287.5,1287.4,3.89812442]
[1610283481800,34.00959,1287.5,1287.4,6.10942442]
[1610283482001,34.00959,1287.5,1287.4,4.2113]
[1610283483200,4.00959,1287.5,1287.4,4.2113]
[1610283483802,34.00959,1287.5,1287.4,4.2113]
[1610283484004,34.00959,1287.5,1287.4,6.579037]
[1610283484503,34.00959,1287.5,1287.4,4.2113]
[1610283485903,34.00959,1287.5,1287.4,6.10453915]
[1610283486202,34.00959,1287.5,1287.4,4.2113]
[1610283486407,34.00959,1287.5,1287.4,2.0]
[1610283486806,34.00959,1287.5,1287.4,3.42145106]
[1610283487205,34.00959,1287.5,1287.4,2.0]
[1610283487605,34.00959,1287.5,1287.4,3.1850888]
[1610283488207,35.73089,1287.5,1287.4,2.0]
[1610283488605,35.73089,1287.5,1287.4,2.94708151]
[1610283490009,35.73089,1287.5,1287.4,2.0]
[1610283490808,35.73089,1287.5,1287.4,2.71041627]
[1610283491209,35.73089,1287.5,1287.4,2.9472337]
[1610283491412,35.73089,1287.5,1287.4,2.71081287]
[1610283491812,35.73089,1287.5,1287.4,2.0]
[1610283492014,35.73089,1287.5,1287.4,2.47395068]
[1610283492312,35.73089,1287.5,1287.4,2.71072192]
[1610283493314,69.72589,1287.5,1287.4,2.71072192]
[1610283493714,69.72589,1287.5,1287.4,2.0]
[1610283494015,69.72589,1287.5,1287.4,2.94800816]
[1610283494416,69.72589,1287.5,1287.4,2.0]
[1610283494616,69.72589,1287.5,1287.4,2.71117282]
[1610283495016,69.72589,1287.5,1287.4,2.94781448]
[1610283496418,69.72589,1287.5,1287.4,2.0]
[1610283496819,69.72589,1287.5,1287.4,2.71090981]
[1610283499424,69.72589,1287.5,1287.4,2.47409056]
[1610283501124,69.72589,1287.5,1287.4,2.0]
[1610283501425,69.72589,1287.5,1287.4,2.47423036]
[1610283502632,69.72589,1287.5,1287.4,2.0]
[1610283506337,31.995,1287.4,1287.2,0.23680766]
[1610283506538,30.0,1287.3,1287.1,0.23671372]
[1610283506740,63.995,1287.3,1287.1,0.23671372]
[1610283506940,63.995,1287.3,1287.2,0.23663081]
[1610283507140,63.995,1287.3,1287.2,10.0]
[1610283507542,68.00459,1287.3,1287.2,10.70876607]
[1610283507940,68.00459,1287.3,1287.2,10.0]
[1610283508441,68.00459,1287.3,1287.2,10.9439627]
[1610283508940,68.00459,1287.3,1287.2,10.0]
[1610283509343,68.00459,1287.3,1287.2,11.18063967]
[1610283510147,68.00459,1287.3,1287.2,10.0]
[1610283510444,68.00459,1287.3,1287.2,11.41512717]
[1610283511946,68.00459,1287.3,1287.2,10.0]
[1610283512848,68.00459,1287.3,1287.2,11.18124182]
[1610283513246,68.00459,1287.3,1287.2,10.0]
[1610283513547,68.00459,1287.3,1287.2,11.18123222]
[1610283515952,68.00459,1287.3,1287.2,10.0]
[1610283516352,68.00459,1287.3,1287.2,10.70817169]
[1610283516752,68.00459,1287.3,1287.2,10.0]
[1610283517154,68.00459,1287.3,1287.2,10.23606575]
[1610283517653,68.00459,1287.3,1287.2,10.0]
[1610283520357,68.00459,1287.3,1287.2,10.23560712]
[1610283521458,68.00459,1287.3,1287.2,10.0]
[1610283527466,23.995,1287.2,1287.1,0.23553388]
[1610283527666,53.995,1287.2,1287.0,0.23499376]
[1610283527868,56.307,1287.2,1287.1,10.0]
[1610283528068,90.302,1287.2,1287.1,10.0]
[1610283532373,90.302,1287.2,1287.1,10.23500893]
[1610283533373,90.302,1287.2,1287.1,10.0]
[1610283537881,90.302,1287.2,1287.1,0.2575]
[1610283541894,90.302,1287.2,1285.5,1.69838746]
[1610283542093,100.518,1287.2,1286.5,0.23539795]
[1610283542294,100.518,1287.2,1286.7,10.0]
[1610283542494,100.518,1287.2,1286.1,0.94159182]
[1610283542495,23.995,1286.7,1286.1,0.94159182]
[1610283542694,30.0,1286.6,1286.1,0.94159182]
[1610283542894,30.0,1286.6,1286.2,10.0]
[1610283543494,30.0,1286.6,1286.1,10.0]
[1610283543694,4.00959,1286.2,1286.1,10.0]
[1610283543896,4.00959,1286.2,1285.6,0.94257741]
[1610283543897,34.00959,1286.2,1285.6,0.94257741]
[1610283544294,35.74929,1286.2,1285.7,10.0]
[1610283544794,35.74929,1286.2,1285.8,10.0]
[1610283545195,35.74929,1286.2,1285.7,10.0]
[1610283545596,35.74929,1286.2,1285.9,10.0]
[1610283545796,4.00959,1286.0,1285.9,10.0]
[1610283545997,34.00959,1286.0,1285.8,10.0]
[1610283546402,34.00959,1286.0,1285.7,10.0]
[1610283546999,34.00959,1286.0,1285.9,10.0]
[1610283547200,34.00959,1286.0,1285.8,10.0]
[1610283547599,34.00959,1286.0,1285.7,10.0]
[1610283547800,4.00959,1285.8,1285.6,0.94139083]
[1610283548001,30.0,1285.7,1285.6,0.94139083]
[1610283548400,30.0,1285.7,1285.6,10.94139083]
[1610283550000,30.0,1285.7,1285.6,11.17514699]
[1610283550403,30.0,1285.7,1285.6,10.0]
[1610283551203,4.00959,1285.8,1285.6,10.0]
[1610283552008,4.00959,1285.8,1285.7,10.0]
[1610283552412,4.00959,1285.8,1285.5,2.34629327]